bitfinex/quotes_SOLUSD_20251106
["timestamp","ask_amount","ask_price","bid_price","bid_amount"]
[1762429977044,0.68,159.17,159.13,8.47031714]
[1762429977625,6.96262186,159.17,159.13,8.47031714]
[1762429977826,6.96262186,159.17,159.13,9.78882769]
[1762429978055,0.68,159.16,159.13,9.78882769]
[1762429979349,0.68,159.16,159.12,11.97507127]
[1762429979350,7.28,159.15,159.12,11.97507127]
[1762429979859,0.68,159.14,159.12,11.97507127]
[1762429980146,7.28,159.15,159.12,11.97507127]
[1762429980332,0.68,159.14,159.12,11.97507127]
[1762429980533,0.68,159.14,159.11,8.47120367]
[1762429982855,110.9831129,159.16,159.11,8.47120367]
[1762429982856,104.7,159.16,159.13,2.18624358]
[1762429983036,104.7,159.16,159.14,2.18624358]
[1762429983237,0.68,159.15,159.09,20.922]
[1762429983453,10.14624358,159.15,159.1,8.47130858]
[1762429983634,2.18624358,159.14,159.11,9.78882769]
[1762429983950,2.86624358,159.14,159.1,6.285065]
[1762429984256,0.68,159.13,159.1,6.285065]
[1762429985357,105.38,159.16,159.13,9.78882769]
[1762429985553,105.38,159.16,159.14,2.18624358]
[1762429985857,104.7,159.2,159.15,2.18624358]
[1762429986040,7.28,159.19,159.17,2.18624358]
[1762429986359,7.96,159.19,159.15,9.78882769]
[1762429986531,0.68,159.18,159.15,9.78882769]
[1762429987448,2.86624358,159.18,159.12,38.48923154]
[1762429987652,9.14849004,159.18,159.13,16.07285744]
[1762429987944,0.68,159.17,159.13,16.07285744]
[1762429988141,7.28,159.16,159.13,18.25910102]
[1762429988738,7.96,159.18,159.14,2.18624358]
[1762429989143,0.68,159.17,159.14,2.18624358]
[1762429989352,0.68,159.17,159.14,8.4697143]
[1762429991466,6.96274302,159.17,159.13,6.28404013]
[1762429991651,6.96274302,159.17,159.12,18.25949833]
[1762429991851,0.68,159.16,159.12,18.25949833]
[1762429992048,0.68,159.16,159.13,2.18624358]
[1762429992363,0.68,159.16,159.12,18.25949833]
[1762429992572,7.28,159.15,159.12,9.78882769]
[1762429992933,0.68,159.14,159.12,9.78882769]
[1762429994060,0.68,159.14,159.12,16.07335643]
[1762429994260,0.68,159.14,159.12,18.25960001]
[1762429995161,0.68,159.16,159.13,2.18624358]
[1762429995466,7.96,159.16,159.13,2.18624358]
[1762429995841,7.96,159.16,159.14,2.18624358]
[1762429996537,7.96,159.16,159.14,8.46996525]
[1762429999056,7.28,159.16,159.14,8.46996525]
[1762430000967,0.68,159.19,159.15,11.97507127]
[1762430001157,0.68,159.18,159.15,18.25835905]
[1762430003364,7.28,159.19,159.16,2.18624358]
[1762430003679,7.98,159.19,159.16,2.18624358]
[1762430004472,7.28,159.19,159.16,2.18624358]
[1762430004670,0.7,159.18,159.16,2.18624358]
[1762430005272,0.7,159.18,159.17,6.28259094]
[1762430005470,7.28,159.19,159.17,6.28259094]
[1762430005680,7.98,159.19,159.17,6.28259094]
[1762430005971,0.7,159.18,159.16,8.46907745]
[1762430009774,0.7,159.18,159.15,9.78882769]
[1762430009966,22.68769601,159.18,159.04,8.74497432]
[1762430010166,2.18624358,159.13,159.08,2.18624358]
[1762430010373,7.28,159.13,159.09,11.97507127]
[1762430010560,7.28,159.13,159.11,9.78882769]
[1762430010755,7.28,159.15,159.11,11.97507127]
[1762430010962,7.28,159.15,159.13,9.78882769]
[1762430011401,7.28,159.15,159.13,16.07298326]
[1762430011675,7.28,159.15,159.13,9.78882769]
[1762430012061,7.98,159.15,159.13,9.78882769]
[1762430012976,7.28,159.15,159.13,11.97507127]
[1762430013361,7.28,159.15,159.13,18.25914889]
[1762430013978,7.98,159.15,159.13,18.25914889]
[1762430014565,7.28,159.15,159.14,11.97507127]
[1762430014770,7.28,159.17,159.15,9.78882769]
[1762430014982,0.7,159.18,159.15,11.97507127]
[1762430015193,0.7,159.2,159.16,6.28298567]
[1762430015396,0.7,159.18,159.16,2.18624358]
[1762430015890,0.7,159.18,159.15,2.18624358]
[1762430016094,0.7,159.18,159.15,11.97507127]
[1762430016869,0.7,159.18,159.15,18.25839789]
[1762430019293,0.7,159.18,159.15,11.97507127]
[1762430019694,6.98221278,159.18,159.14,11.97507127]
[1762430020171,0.68,159.17,159.14,11.97507127]
[1762430020576,0.68,159.17,159.14,9.78882769]
[1762430020793,0.68,159.17,159.14,11.97507127]
[1762430021288,104.7,159.18,159.15,2.18624358]
[1762430021496,105.38,159.18,159.15,11.97507127]
[1762430021679,104.7,159.18,159.16,2.18624358]
[1762430022072,105.38,159.18,159.16,2.18624358]
[1762430022373,104.7,159.18,159.17,2.18624358]
[1762430022578,0.2,159.21,159.17,12.30507127]
[1762430022776,0.2,159.21,159.2,2.18624358]
[1762430023189,0.88,159.21,159.2,2.18624358]
[1762430025502,0.88,159.21,159.18,9.78882769]
[1762430025683,0.68,159.2,159.17,8.46873838]
[1762430026003,0.68,159.2,159.17,18.25756607]
[1762430026697,0.2,159.21,159.18,2.18624358]
[1762430026888,0.88,159.21,159.18,2.18624358]
[1762430027295,0.2,159.21,159.18,2.18624358]
[1762430027484,0.68,159.2,159.18,8.46810485]
[1762430027679,0.2,159.21,159.19,2.18624358]
[1762430027898,0.88,159.21,159.19,2.18624358]
[1762430030508,0.88,159.21,159.19,8.4678707]
[1762430031596,0.88,159.21,159.2,9.78882769]
[1762430033194,0.88,159.21,159.19,9.69637543]
[1762430037114,0.2,159.21,159.19,9.69637543]
[1762430037615,0.89,159.21,159.19,9.69637543]
[1762430042811,0.2,159.21,159.19,9.69637543]
[1762430043193,0.89,159.21,159.19,9.69637543]
[1762430044715,0.2,159.21,159.2,13.203576]
[1762430045098,0.2,159.21,159.2,13.533576]
[1762430045296,0.2,159.21,159.2,13.203576]
[1762430045500,0.89,159.21,159.2,9.78882769]
[1762430045714,0.89,159.21,159.19,9.78882769]
[1762430045916,0.2,159.21,159.19,9.78882769]
[1762430046115,0.69,159.2,159.18,9.78882769]
[1762430046811,0.69,159.2,159.18,16.07084735]
[1762430047119,0.69,159.2,159.16,9.69734454]
[1762430047340,3.41474831,159.17,159.09,3.41474831]
[1762430047498,3.41474831,159.13,159.08,9.70089364]
[1762430047696,10.69474831,159.13,159.1,9.78882769]
[1762430047923,3.41474831,159.11,159.06,9.70156618]
[1762430048224,3.41474831,159.11,159.07,3.41474831]
[1762430048416,0.69,159.1,159.07,3.41474831]
[1762430048614,0.69,159.1,159.07,9.78882769]
[1762430049123,0.69,159.1,159.07,16.0751341]
[1762430049908,0.69,159.1,159.07,19.48988241]
[1762430050423,0.69,159.1,159.07,9.78882769]
[1762430050607,7.97,159.1,159.06,9.78882769]
[1762430050818,11.38474831,159.1,159.06,9.78882769]
[1762430051008,0.69,159.09,159.06,19.49023155]
[1762430051229,7.28,159.1,159.08,3.41474831]
[1762430051725,7.97,159.1,159.08,3.41474831]
[1762430052232,7.28,159.1,159.08,9.70084468]
[1762430052725,7.28,159.12,159.09,13.203576]
[1762430052930,7.97,159.12,159.1,3.41474831]
[1762430053110,0.69,159.11,159.09,13.203576]
[1762430053710,0.69,159.11,159.1,6.28535512]
[1762430053916,7.28,159.12,159.1,9.70010343]
[1762430054108,7.97,159.12,159.1,9.70010343]
[1762430055031,7.28,159.12,159.11,3.41474831]
[1762430055216,7.28,159.15,159.11,13.203576]
[1762430055411,0.69,159.14,159.11,13.203576]
[1762430055822,0.69,159.14,159.11,19.48851179]
[1762430056315,0.69,159.14,159.11,16.07376348]
[1762430056610,0.69,159.14,159.11,19.48851179]
[1762430058126,7.28,159.15,159.13,3.41474831]
[1762430058324,0.69,159.17,159.14,3.41474831]
[1762430058739,0.69,159.17,159.14,9.78882769]
[1762430059436,0.69,159.17,159.14,16.07235697]
[1762430059732,0.69,159.17,159.14,19.48710528]
[1762430060416,0.69,159.17,159.14,16.07235697]
[1762430060837,4.10474831,159.17,159.12,13.203576]
[1762430061005,11.38474831,159.16,159.12,16.07329315]
[1762430061206,11.38474831,159.16,159.12,9.78882769]
[1762430061440,0.69,159.15,159.12,9.78882769]
[1762430062932,0.69,159.15,159.12,16.07332452]
[1762430064439,10.38822183,159.15,159.11,6.28484994]
[1762430064727,10.38822183,159.15,159.1,19.48883147]
[1762430064909,105.4,159.14,159.1,19.48883147]
[1762430065835,7.28,159.13,159.1,9.78882769]
[1762430066135,7.98,159.13,159.1,9.78882769]
[1762430066323,9.6997084,159.11,159.07,9.78882769]
[1762430066628,7.28,159.1,159.07,9.78882769]
[1762430066826,7.98,159.1,159.06,9.70164467]
[1762430067035,0.7,159.09,159.06,9.70164467]
[1762430071140,0.7,159.09,159.06,6.28689636]
[1762430071345,0.7,159.09,159.05,19.49086817]
[1762430071841,6.98575059,159.09,159.05,19.49086817]
[1762430072042,3.41474831,159.08,159.05,9.78882769]
[1762430072230,7.28,159.07,159.05,16.07614977]
[1762430072430,7.98,159.07,159.05,16.07614977]
[1762430072615,0.7,159.06,159.05,16.07614977]
[1762430073916,0.7,159.06,159.02,19.13601894]
[1762430074121,0.7,159.06,159.03,9.78882769]
[1762430074335,0.7,159.06,159.03,16.07681159]
[1762430074530,10.40168608,159.06,159.02,9.78882769]
[1762430074739,0.7,159.06,159.02,19.49203754]
[1762430074946,0.7,159.05,159.02,19.49203754]
[1762430078051,0.7,159.05,159.02,16.07728923]
[1762430080660,104.7,159.04,158.97,0.2]
[1762430080858,3.41474831,159.01,158.97,0.2]
[1762430081048,10.69474831,159.0,158.97,0.2]
[1762430081365,3.41474831,158.99,158.97,0.2]
[1762430081663,4.11474831,158.99,158.97,0.2]
[1762430081833,4.11474831,158.98,158.97,0.2]
[1762430084663,20.592,159.0,158.97,0.2]
[1762430084862,7.98,159.0,158.97,0.2]
[1762430085162,0.7,158.99,158.97,0.2]
[1762430086562,0.7,158.99,158.97,6.49049177]
[1762430086860,0.7,158.99,158.97,0.2]
[1762430087862,0.7,158.99,158.97,6.49043448]
[1762430089961,0.7,159.02,158.98,13.203576]
[1762430090162,0.7,159.01,158.99,3.41474831]
[1762430090669,0.7,159.01,158.98,9.78882769]
[1762430090834,0.7,159.01,158.99,3.41474831]
[1762430091759,0.7,159.01,158.98,6.29008662]
[1762430091961,7.98,159.01,158.98,9.70483493]
[1762430092163,7.28,159.0,158.98,9.70483493]
[1762430092366,7.95,159.0,158.98,9.70483493]
[1762430092568,7.95,159.0,158.99,3.41474831]
[1762430094368,7.95,159.0,158.99,2.19103044]
[1762430095468,7.95,159.0,158.99,8.48073419]
[1762430096503,7.95,159.0,158.99,2.19103044]
[1762430096647,7.95,159.0,158.98,8.48099537]
[1762430097148,7.95,159.0,158.99,2.19103044]
[1762430098278,7.95,159.0,158.99,8.48073419]
[1762430099272,7.95,159.0,158.98,2.19103044]
[1762430099980,7.95,159.0,158.98,8.48099751]
[1762430101279,0.67,158.99,158.98,2.19103044]
[1762430103188,0.67,158.99,158.97,8.68150277]
[1762430103793,20.592,158.98,158.97,0.2]
[1762430104090,31.51929286,158.98,158.95,0.1]
[1762430104295,2.19103044,158.96,158.95,0.1]
[1762430104794,2.86103044,158.96,158.95,0.1]
[1762430105463,9.15192123,158.96,158.95,0.1]
[1762430106367,0.67,158.98,158.95,6.39127444]
[1762430106566,112.65,159.0,158.95,9.11230488]
[1762430106901,2.19103044,158.98,158.95,0.1]
[1762430107077,7.28,158.97,158.95,0.1]
[1762430107396,7.95,158.97,158.95,0.1]
[1762430107694,0.67,158.96,158.95,0.1]
[1762430108090,2.86103044,158.96,158.95,0.1]
[1762430109700,9.15192123,158.96,158.95,0.1]
[1762430112271,6.96089079,158.96,158.95,0.1]
[1762430112879,9.15192123,158.96,158.95,0.1]
[1762430114024,7.95,158.96,158.95,0.1]
[1762430114381,7.28,158.96,158.95,0.1]
[1762430115115,0.67,158.99,158.95,2.29103044]
[1762430115283,7.28,158.98,158.95,2.29103044]
[1762430115485,7.28,158.98,158.96,2.19103044]
[1762430115683,7.95,158.98,158.96,2.19103044]
[1762430115884,0.67,159.01,158.97,2.19103044]
[1762430116180,7.28,159.0,158.97,2.19103044]
[1762430116396,9.47103044,159.0,158.96,2.19103044]
[1762430116579,0.67,158.99,158.95,8.582317]
[1762430116781,2.86103044,158.99,158.95,8.582317]
[1762430117081,6.29049506,158.97,158.95,0.1]
[1762430117281,7.3,158.96,158.95,0.1]
[1762430117478,7.97,158.96,158.95,0.1]
[1762430119497,7.3,158.96,158.95,6.39128656]
[1762430119702,7.3,158.96,158.95,8.582317]
[1762430122732,8.0,158.96,158.95,0.1]
[1762430125542,7.3,158.96,158.95,6.39128656]
[1762430129038,8.0,158.96,158.95,0.1]
[1762430129733,7.3,158.96,158.95,0.1]
[1762430130438,7.3,158.96,158.95,6.39128656]
[1762430130937,7.3,158.96,158.95,8.582317]
[1762430132437,7.3,158.96,158.95,0.1]
[1762430132631,8.0,158.96,158.95,0.1]
[1762430132936,7.3,158.96,158.95,0.1]
[1762430133334,8.0,158.96,158.95,0.1]
[1762430133521,16.48192123,158.96,158.95,0.1]
[1762430133718,104.7,158.95,158.94,0.1]
[1762430133922,107.59103044,158.95,158.94,0.1]
[1762430134515,113.882317,158.95,158.94,0.1]
[1762430135634,111.69128656,158.95,158.94,0.1]
[1762430135829,107.59103044,158.95,158.94,0.1]
[1762430136030,105.4,158.95,158.94,0.1]
[1762430137044,0.7,158.99,158.94,9.21271283]
[1762430137346,7.28,158.98,158.95,2.19103044]
[1762430138531,7.98,158.98,158.95,8.48207407]
[1762430141844,0.7,158.97,158.94,8.58263421]
[1762430142149,7.28,158.96,158.94,8.58263421]
[1762430142320,7.28,158.95,158.94,8.58263421]
[1762430143350,7.28,158.95,158.94,0.1]
[1762430143736,7.98,158.95,158.94,0.1]
[1762430146758,14.27128656,158.95,158.94,0.1]
[1762430147329,118.97128656,158.95,158.94,0.1]
[1762430147649,16.462317,158.95,158.94,0.1]
[1762430148357,7.98,158.95,158.94,0.1]
[1762430149442,7.28,158.95,158.94,0.1]
[1762430151568,10.17103044,158.95,158.94,0.1]
[1762430151959,16.462317,158.95,158.94,0.1]
[1762430156360,17.69863903,158.95,158.94,0.1]
[1762430159565,14.27128656,158.95,158.94,0.1]
[1762430161554,17.69863903,158.95,158.94,0.1]
[1762430164346,14.27128656,158.95,158.94,0.1]
[1762430164656,17.69863903,158.95,158.94,0.1]
[1762430165569,10.41863903,158.95,158.94,0.1]
[1762430165764,17.69863903,158.95,158.94,0.1]
[1762430166160,14.27128656,158.95,158.94,0.1]
[1762430166359,13.57128656,158.95,158.94,0.1]
[1762430167072,4.14735247,159.0,158.94,10.44893555]
[1762430167370,3.42735247,158.97,158.94,0.1]
[1762430167544,3.42735247,158.95,158.94,0.1]
[1762430167748,13.57128656,158.95,158.94,0.1]
[1762430168051,14.29128656,158.95,158.94,0.1]
[1762430168250,17.71863903,158.95,158.94,0.1]
[1762430168553,13.57128656,158.95,158.94,0.1]
[1762430168760,14.29128656,158.95,158.94,0.1]
[1762430169852,7.28,158.95,158.94,0.1]
[1762430170278,8.0,158.95,158.94,0.1]
[1762430170480,7.28,158.95,158.94,0.1]
[1762430176282,14.29128656,158.95,158.94,0.1]
[1762430177181,8.0,158.95,158.94,0.1]
[1762430177482,7.28,158.95,158.94,0.1]
[1762430178468,14.29128656,158.95,158.94,0.1]
[1762430178782,7.28,158.95,158.94,0.1]
[1762430179678,7.28,158.95,158.94,7.02168239]
[1762430180064,7.28,158.95,158.94,6.39168239]
[1762430181485,7.28,158.95,158.94,0.1]
[1762430185477,7.28,158.95,158.94,6.39168239]
[1762430187295,7.28,158.95,158.94,0.1]
[1762430187603,7.28,158.95,158.94,6.39168239]
[1762430187896,7.28,158.95,158.94,7.02168239]
[1762430188094,7.28,158.95,158.94,10.44903486]
[1762430188299,7.28,158.96,158.94,10.44903486]
[1762430188599,7.28,158.96,158.95,4.05735247]
[1762430188893,7.28,158.98,158.95,4.05735247]
[1762430189105,7.28,158.98,158.96,4.05735247]
[1762430189487,104.7,158.97,158.96,4.05735247]
[1762430189686,104.7,158.97,158.96,3.42735247]
[1762430189882,0.66,159.01,158.96,3.42735247]
[1762430190081,0.66,159.01,158.99,3.42735247]
[1762430190286,7.28,159.0,158.98,3.42735247]
[1762430190603,0.66,159.01,158.98,3.42735247]
[1762430190818,7.28,159.0,158.98,3.42735247]
[1762430191681,7.28,159.0,158.98,9.71713785]
[1762430191892,7.28,159.0,158.99,3.42735247]
[1762430192774,7.28,159.0,158.99,9.71705622]
[1762430194490,104.7,159.03,159.0,9.78882769]
[1762430194825,7.28,159.02,159.01,3.42735247]
[1762430194978,7.28,159.02,159.0,9.78882769]
[1762430194979,7.28,159.02,159.0,10.41882769]
[1762430195179,7.28,159.02,159.01,3.42735247]
[1762430195619,7.28,159.02,158.94,0.1]
[1762430195787,3.42735247,158.96,158.94,0.1]
[1762430195984,7.28,158.95,158.94,0.1]
[1762430196182,7.94,158.95,158.94,0.1]
[1762430196496,11.36735247,158.95,158.94,0.1]
[1762430197101,7.28,158.95,158.94,0.1]
[1762430197288,7.97,158.95,158.94,0.1]
[1762430197690,0.69,158.95,158.94,0.1]
[1762430197987,7.99,158.95,158.94,0.1]
[1762430198407,14.28128656,158.95,158.94,0.1]
[1762430199208,17.70863903,158.95,158.94,0.1]
[1762430201800,14.28128656,158.95,158.94,0.1]
[1762430201993,17.70863903,158.95,158.94,0.1]
[1762430203897,7.3,158.95,158.94,0.1]
[1762430204292,8.81114079,159.01,158.94,10.44899342]
[1762430204612,7.3,159.0,158.96,3.42735247]
[1762430204798,11.41735247,159.0,158.95,4.05735247]
[1762430205111,3.42735247,158.98,158.94,0.73]
[1762430205289,7.3,158.97,158.94,0.73]
[1762430206318,7.3,158.97,158.94,6.39164139]
[1762430206319,7.3,158.96,158.94,6.39164139]
[1762430206499,11.41735247,158.96,158.94,0.1]
[1762430206812,0.69,158.95,158.94,0.1]
[1762430207713,6.98128656,158.95,158.94,0.1]
[1762430207920,6.29128656,158.95,158.94,0.1]
[1762430208697,17.7083531,158.96,158.94,0.1]
[1762430209110,7.3,158.96,158.94,0.1]
[1762430209291,7.99,158.96,158.94,0.1]
[1762430210817,7.3,158.96,158.94,0.1]
[1762430211204,7.99,158.96,158.94,0.1]
[1762430212118,7.3,158.96,158.94,10.44878689]
[1762430212601,7.3,158.96,158.94,6.39143442]
[1762430214801,7.28,158.96,158.94,6.39143442]
[1762430216623,104.7,158.97,158.95,3.42735247]
[1762430216910,111.98,158.97,158.96,9.71824326]
[1762430217230,111.98,158.97,158.95,10.34856568]
[1762430217399,104.7,158.97,158.95,10.34856568]
[1762430217718,111.98,158.97,158.95,0.63]
[1762430217899,111.98,158.97,158.95,9.78882769]
[1762430218320,0.68,158.96,158.94,0.1]
[1762430218629,7.28,158.95,158.94,0.1]
[1762430220234,7.96,158.95,158.94,0.1]
[1762430222406,104.7,158.97,158.94,0.1]
[1762430222741,111.98,158.97,158.96,2.19266382]
[1762430223038,104.7,158.97,158.96,2.19266382]
[1762430223208,7.28,158.99,158.96,9.11355461]
[1762430223406,7.28,158.99,158.98,2.19266382]
[1762430223910,7.28,158.99,158.98,2.82266382]
[1762430224240,7.28,158.99,158.98,2.19266382]
[1762430224820,7.28,159.0,158.98,2.19266382]
[1762430225043,7.28,159.0,158.99,2.19266382]
[1762430226907,7.28,159.0,158.99,9.11236757]
[1762430227232,7.28,159.0,158.99,18.90119526]
[1762430227618,7.28,159.0,158.99,18.27119526]
[1762430228330,7.28,159.01,158.99,18.27119526]
[1762430228528,0.68,159.02,159.0,2.19266382]
[1762430228831,0.68,159.02,158.99,16.07853144]
[1762430229034,7.28,159.01,158.99,16.07853144]
[1762430229332,7.28,159.01,158.99,16.70853144]
[1762430229707,27.55985456,159.04,159.0,2.19266382]
[1762430230031,7.96,159.03,159.01,2.19266382]
[1762430232323,14.24816477,159.03,159.01,2.19266382]
[1762430234464,14.24816477,159.03,159.0,2.19266382]
[1762430235667,0.68,159.02,158.98,2.19266382]
[1762430237149,7.28,159.03,158.99,2.82266382]
[1762430237355,7.96,159.03,158.99,2.82266382]
[1762430237742,0.68,159.02,158.99,2.19266382]
[1762430237953,0.68,159.02,159.0,2.19266382]
[1762430238273,7.28,159.01,159.0,2.19266382]
[1762430239666,7.28,159.01,158.99,8.48236491]
[1762430240055,7.96,159.01,158.98,6.28995668]
[1762430240261,7.96,159.01,158.98,8.4826205]
[1762430240647,7.96,159.01,158.98,9.1126205]
[1762430240847,7.96,159.01,158.99,2.19266382]
[1762430243848,7.28,159.01,158.99,8.48228327]
[1762430245968,7.28,159.01,159.0,2.19266382]
[1762430246468,7.28,159.01,158.99,8.48228327]
[1762430246965,7.28,159.01,158.99,6.28961945]
[1762430247150,7.28,159.01,158.98,8.48270797]
[1762430247151,0.67,159.0,158.98,8.48270797]
[1762430247553,0.67,159.0,158.98,9.78882769]
[1762430247857,7.28,158.99,158.96,8.48352656]
[1762430248165,112.65,158.99,158.96,8.48352656]
[1762430248674,112.65,158.99,158.96,6.29086274]
[1762430249473,112.65,158.99,158.96,8.48352656]
[1762430251043,111.98,158.99,158.96,9.11352656]
[1762430251276,111.98,158.99,158.97,2.19266382]
[1762430251570,111.98,158.99,158.98,2.19266382]
[1762430251756,111.98,158.99,158.98,2.82266382]
[1762430251757,104.7,158.99,158.98,2.82266382]
[1762430252156,104.7,158.99,158.98,0.63]
[1762430252362,104.7,158.99,158.98,2.82266382]
[1762430252859,7.28,159.0,158.98,2.82266382]
[1762430253058,7.28,159.0,158.99,8.48236757]
[1762430255965,7.28,159.0,158.99,6.28970375]
[1762430257357,7.28,159.0,158.99,8.48236757]
[1762430261986,0.67,159.01,158.99,8.48236757]
[1762430264779,0.67,159.01,158.98,8.4827632]
[1762430265684,0.67,159.01,158.98,6.29009938]
[1762430266292,6.95893242,159.01,158.97,6.29036132]
[1762430266671,0.69,159.0,158.97,6.29036132]
[1762430266882,7.28,158.99,158.96,6.29074735]
[1762430267082,7.28,158.99,158.96,8.48341117]
[1762430267274,0.69,158.98,158.96,8.48341117]
[1762430269476,0.69,158.98,158.96,6.29074735]
[1762430269682,0.69,158.98,158.96,8.48341117]
[1762430270281,105.39,158.98,158.94,2.29266382]
[1762430270594,2.19266382,158.97,158.94,0.1]
[1762430270785,7.28,158.96,158.94,0.1]
[1762430270973,7.97,158.96,158.94,0.1]
[1762430271175,9.17395038,158.95,158.94,0.1]
[1762430273568,6.98128656,158.95,158.94,0.1]
[1762430276094,9.17395038,158.95,158.94,0.1]
[1762430277493,0.7,158.98,158.94,22.75088837]
[1762430277798,0.7,158.98,158.97,2.19266382]
[1762430278096,7.98,159.0,158.95,12.61149151]
[1762430278388,7.98,159.0,158.96,3.42463481]
[1762430278568,0.7,158.99,158.96,3.42463481]
[1762430279196,0.7,158.99,158.95,13.8434625]
[1762430279395,0.7,158.99,158.95,20.13445106]
[1762430279595,7.98,158.99,158.95,20.13445106]
[1762430279781,7.98,158.99,158.96,3.42463481]
[1762430279982,0.7,158.99,158.96,3.42463481]
[1762430280183,7.28,158.98,158.97,3.42463481]
[1762430280894,7.98,158.98,158.96,3.42463481]
[1762430281085,7.28,158.97,158.96,3.42463481]
[1762430281279,7.98,158.97,158.94,0.1]
[1762430281593,0.7,158.96,158.94,0.1]
[1762430281797,7.28,158.95,158.94,0.1]
[1762430281986,10.70463481,158.95,158.93,0.1]
[1762430282295,0.7,158.94,158.93,0.1]
[1762430282477,31.99663481,158.94,158.93,0.1]
[1762430282882,38.2883172,158.94,158.93,0.1]
[1762430284511,7.28,158.94,158.93,10.52671308]
[1762430284672,7.98,158.94,158.93,3.52463481]
[1762430284874,7.28,158.94,158.93,3.52463481]
[1762430285504,7.28,158.94,158.93,0.1]
[1762430285709,7.28,158.94,158.93,3.52463481]
[1762430286373,7.28,158.94,158.93,0.1]
[1762430289892,7.28,158.94,158.93,3.52463481]
[1762430290088,7.28,158.94,158.93,0.1]
[1762430290300,7.28,158.94,158.93,3.52463481]
[1762430291794,7.28,158.94,158.93,0.1]
[1762430292907,7.28,158.94,158.93,3.52463481]
[1762430294114,104.7,158.97,158.93,10.52671308]
[1762430294328,7.28,158.95,158.93,7.10207827]
[1762430295018,7.28,158.95,158.93,6.39207827]
[1762430295321,7.28,158.95,158.94,6.29168239]
[1762430295513,7.28,158.95,158.94,9.7163172]
[1762430295696,7.28,158.95,158.94,3.42463481]
[1762430296024,7.28,158.95,158.94,9.7163172]
[1762430296799,105.4,158.97,158.94,9.7163172]
[1762430297117,7.28,158.95,158.93,0.1]
[1762430297502,7.98,158.95,158.93,0.1]
[1762430300496,0.7,158.94,158.93,0.1]
[1762430300693,7.98,158.94,158.93,0.1]
[1762430303913,7.28,158.94,158.93,0.1]
[1762430304113,125.292,158.97,158.93,10.51658695]
[1762430304317,104.7,158.97,158.96,3.42463481]
[1762430304619,111.98,158.97,158.96,9.7155256]
[1762430305123,104.7,158.97,158.96,9.7155256]
[1762430305306,111.98,158.97,158.96,9.7155256]
[1762430305618,112.66,158.97,158.94,3.42463481]
[1762430305815,0.68,158.96,158.94,3.42463481]
[1762430306006,104.7,158.97,158.94,3.42463481]
[1762430306207,7.28,158.96,158.94,3.42463481]
[1762430306405,7.28,158.96,158.94,9.71621511]
[1762430307626,7.28,158.96,158.95,3.42463481]
[1762430307805,105.38,158.97,158.95,3.42463481]
[1762430308218,7.28,158.96,158.95,16.08009108]
[1762430308410,7.28,158.96,158.95,19.50472589]
[1762430308917,7.28,158.96,158.95,20.20472589]
[1762430309624,104.7,158.97,158.95,20.20472589]
[1762430310027,104.7,158.97,158.96,3.42463481]
[1762430312413,104.7,158.97,158.96,9.7155256]
[1762430315940,105.38,158.97,158.96,6.29089079]
[1762430316319,112.66,158.97,158.96,9.7155256]
[1762430317534,111.98,158.97,158.96,9.7155256]